fUSD/lending_fUSD_20240319
["ID","MTS","AMOUNT","RATE_DAILY","PERIOD"]
[319531430,1710827516818,-1229.29,0.0005589,120]
[319531431,1710827516829,-500.0,0.0005589,120]
[319531432,1710827516840,-743.99,0.0005589,120]
[319531433,1710827516850,-500.0,0.0005589,120]
[319531434,1710827516860,-628.13,0.0005589,120]
[319531435,1710827516872,-1973.36,0.0005589,120]
[319531436,1710827516882,-850.45,0.0005589,120]
[319531437,1710827516893,-643.65,0.0005589,120]
[319531438,1710827516903,-1436.94,0.0005589,120]
[319531439,1710827516913,-1623.87,0.0005589,120]
[319531440,1710827516923,-1386.7,0.0005589,120]
[319531441,1710827516933,-2995.94,0.0005589,120]
[319531442,1710827516943,-500.0,0.0005589,120]
[319531443,1710827516953,-1797.16,0.0005589,120]
[319531444,1710827516963,-1038.84,0.0005589,120]
[319531445,1710827516973,-653.57,0.0005589,120]
[319531446,1710827516983,-6815.41,0.0005589,120]
[319531447,1710827516994,-500.0,0.0005589,120]
[319531448,1710827517003,-500.0,0.0005589,120]
[319531449,1710827517012,-253.42272124,0.0005589,120]
[319531450,1710827517022,-844.11,0.0005589,120]
[319531451,1710827517033,-604.64417504,0.0005589,120]
[319531452,1710827517043,-500.0,0.0005589,120]
[319531453,1710827517053,-2518.17,0.0005589,21]
[319531454,1710827517064,-500.0,0.0005589,120]
[319531455,1710827517074,-500.0,0.0005589,120]
[319531456,1710827517085,-500.0,0.0005589,120]
[319531457,1710827517095,-500.0,0.0005589,120]
[319531458,1710827517105,-1249.47,0.0005589,120]
[319531459,1710827517116,-8128.88,0.0005589,120]
[319531460,1710827517126,-644.09,0.0005589,120]
[319531461,1710827517137,-2104.14,0.0005589,120]
[319531462,1710827517147,-500.0,0.0005589,120]
[319531463,1710827517157,-520.51,0.0005589,120]
[319531464,1710827517168,-500.0,0.0005589,120]
[319531465,1710827517178,-500.0,0.0005589,120]
[319531466,1710827517189,-500.0,0.0005589,120]
[319531467,1710827517199,-523.88,0.0005589,120]
[319531468,1710827517209,-4987.59,0.0005589,120]
[319531469,1710827517220,-1329.62,0.0005589,120]
[319531470,1710827517231,-500.0,0.0005589,120]
[319531471,1710827517240,-2650.41,0.0005589,120]
[319531472,1710827517253,-500.0,0.0005589,120]
[319531473,1710827517265,-8315.42,0.0005589,120]
[319531474,1710827517275,-2122.55,0.0005589,120]
[319531475,1710827517286,-8238.56,0.0005589,120]
[319531476,1710827517297,-882.83,0.0005589,120]
[319531477,1710827517307,-500.0,0.0005589,120]
[319531478,1710827517318,-500.0,0.0005589,120]
[319531479,1710827517329,-1643.06,0.0005589,120]
[319531480,1710827517339,-500.0,0.0005589,120]
[319531481,1710827517350,-500.0,0.0005589,120]
[319531482,1710827517359,-870.48,0.0005589,120]
[319531483,1710827517368,-290.52891363,0.0005589,120]
[319531484,1710827517378,-500.0,0.0005589,120]
[319531485,1710827517388,-500.0,0.0005589,120]
[319531486,1710827517398,-884.71,0.0005589,120]
[319531487,1710827517414,-500.0,0.0005589,120]
[319531488,1710827517424,-3569.24,0.0005589,120]
[319531489,1710827517434,-3795.75,0.0005589,120]
[319531490,1710827517444,-500.0,0.0005589,120]
[319531491,1710827517453,-500.0,0.0005589,120]
[319531492,1710827517463,-1136.5,0.0005589,120]
[319531493,1710827517472,-500.0,0.0005589,120]
[319531494,1710827517482,-1245.02,0.0005589,120]
[319531495,1710827517491,-1319.6,0.0005589,120]
[319531496,1710827517502,-500.0,0.0005589,120]
[319531497,1710827517512,-500.0,0.0005589,120]
[319531498,1710827517522,-4709.5,0.0005589,120]
[319531499,1710827517531,-1151.39,0.0005589,120]
[319531500,1710827517540,-2980.53,0.0005589,120]
[319531501,1710827517551,-500.0,0.0005589,120]
[319531502,1710827517561,-500.0,0.0005589,120]
[319531503,1710827517570,-500.0,0.0005589,120]
[319531504,1710827517580,-500.0,0.0005589,120]
[319531505,1710827517590,-1105.32,0.0005589,120]
[319531506,1710827517599,-8508.21,0.0005589,120]
[319531507,1710827517610,-1495.81,0.0005589,120]
[319531508,1710827517620,-643.14,0.0005589,120]
[319531509,1710827517630,-553.8,0.0005589,120]
[319531510,1710827517640,-500.0,0.0005589,120]
[319531511,1710827517650,-500.0,0.0005589,120]
[319531512,1710827517660,-500.0,0.0005589,120]
[319531513,1710827517670,-998.57,0.0005589,120]
[319531514,1710827517681,-769.96,0.0005589,120]
[319531515,1710827517690,-500.0,0.0005589,120]
[319531516,1710827517700,-954.53,0.0005589,120]
[319531517,1710827517711,-500.0,0.0005589,120]
[319531518,1710827517722,-13738.43,0.0005589,120]
[319531519,1710827517732,-500.0,0.0005589,120]
[319531520,1710827517744,-2114.35,0.0005589,120]
[319531521,1710827517754,-500.0,0.0005589,120]
[319531522,1710827517765,-500.0,0.0005589,120]
[319531523,1710827517775,-1410.75,0.0005589,120]
[319531524,1710827517785,-2607.41,0.0005589,120]
[319531525,1710827517796,-636.29,0.0005589,120]
[319531526,1710827517808,-1049.03,0.0005589,120]
[319531527,1710827517818,-4751.34,0.0005589,120]
[319531528,1710827517828,-500.0,0.0005589,120]
[319531529,1710827517839,-958.9,0.0005589,120]
[319531530,1710827517849,-500.0,0.0005589,120]
[319531531,1710827517859,-2780.44,0.0005589,120]
[319531532,1710827517869,-500.0,0.0005589,120]
[319531533,1710827517881,-500.0,0.0005589,120]
[319531534,1710827517891,-500.0,0.0005589,120]
[319531535,1710827517901,-500.0,0.0005589,120]
[319531536,1710827517911,-4283.42,0.0005589,120]
[319531537,1710827517921,-500.0,0.0005589,120]
[319531538,1710827517931,-591.34,0.0005589,120]
[319531539,1710827517941,-1025.59,0.0005589,120]
[319531540,1710827517951,-500.0,0.0005589,120]
[319531541,1710827517961,-2199.95,0.0005589,120]
[319531542,1710827517971,-634.14,0.0005589,120]
[319531543,1710827517980,-500.0,0.0005589,120]
[319531544,1710827518071,-14611.2,0.0005589,120]
[319531545,1710827518081,-1893.62,0.0005589,120]
[319531546,1710827518090,-500.0,0.0005589,120]
[319531547,1710827518100,-836.76,0.0005589,120]
[319531548,1710827518110,-500.0,0.0005589,120]
[319531549,1710827518119,-500.0,0.0005589,120]
[319531550,1710827518129,-1421.89,0.0005589,7]
[319531551,1710827518139,-3835.86,0.0005589,120]
[319531552,1710827518148,-1442.15,0.0005589,120]
[319531553,1710827518158,-497.36853137,0.0005589,120]
[319531554,1710827518168,-500.0,0.0005589,120]
[319531555,1710827518178,-214.59554668,0.0005589,120]
[319531556,1710827518188,-1144.33,0.0005589,120]
[319531557,1710827518198,-500.0,0.0005589,120]
[319531558,1710827518208,-5234.98,0.0005589,120]
[319531559,1710827518218,-500.0,0.0005589,120]
[319531560,1710827518227,-861.0,0.0005589,120]
[319531561,1710827518238,-150.0,0.0005589,120]
[319531562,1710827518249,-500.0,0.0005589,120]
[319531563,1710827518259,-614.75,0.0005589,120]
[319531564,1710827518269,-584.01,0.0005589,120]
[319531565,1710827518279,-783.51,0.0005589,120]
[319531566,1710827518288,-500.0,0.0005589,120]
[319531567,1710827518298,-3537.98,0.0005589,120]
[319531568,1710827518308,-1756.93,0.0005589,120]
[319531569,1710827518317,-2591.17,0.0005589,120]
[319531570,1710827518327,-528.69,0.0005589,120]
[319531571,1710827518337,-7694.82,0.0005589,120]
[319531572,1710827518347,-1601.56,0.0005589,120]
[319531573,1710827518358,-500.0,0.0005589,120]
[319531574,1710827518368,-1099.11,0.0005589,120]
[319531575,1710827518378,-500.0,0.0005589,120]
[319531576,1710827518387,-521.58,0.0005589,120]
[319531577,1710827518397,-2132.44,0.0005589,120]
[319531578,1710827518407,-1409.19,0.0005589,120]
[319531579,1710827518417,-1549.94,0.0005589,120]
[319531580,1710827518427,-638.76,0.0005589,120]
[319531581,1710827518437,-1035.89,0.0005589,120]
[319531582,1710827518447,-500.0,0.0005589,120]
[319531583,1710827518457,-790.23,0.0005589,120]
[319531584,1710827518467,-500.0,0.0005589,120]
[319531585,1710827518478,-500.0,0.0005589,120]
[319531586,1710827518488,-500.0,0.0005589,120]
[319531587,1710827518498,-1004.37,0.0005589,120]
[319531588,1710827518508,-974.26,0.0005589,120]
[319531589,1710827518518,-500.0,0.0005589,120]
[319531590,1710827518528,-2332.1,0.0005589,120]
[319531591,1710827518538,-7065.9,0.0005589,120]
[319531592,1710827518548,-2467.87,0.0005589,120]
[319531593,1710827518558,-6649.21,0.0005589,120]
[319531594,1710827518568,-500.0,0.0005589,120]
[319531595,1710827518577,-930.89,0.0005589,120]
[319531596,1710827518586,-2420.63,0.0005589,120]
[319531597,1710827518596,-500.0,0.0005589,120]
[319531598,1710827518605,-529.45,0.0005589,120]
[319531599,1710827518615,-1756.75,0.0005589,120]
[319531600,1710827518624,-739.57,0.0005589,120]
[319531601,1710827518634,-1794.47,0.0005589,120]
[319531602,1710827518645,-500.0,0.0005589,120]
[319531603,1710827518654,-500.0,0.0005589,120]
[319531604,1710827518664,-3745.75,0.0005589,120]
[319531605,1710827518674,-1874.64,0.0005589,120]
[319531606,1710827518683,-613.74,0.0005589,120]
[319531607,1710827518693,-2235.16,0.0005589,120]
[319531608,1710827518703,-522.04,0.0005589,120]
[319531609,1710827518713,-500.0,0.0005589,120]
[319531610,1710827518723,-500.0,0.0005589,120]
[319531611,1710827518733,-500.0,0.0005589,120]
[319531612,1710827518742,-500.0,0.0005589,120]
[319531613,1710827518753,-25000.0,0.000559,120]
[319531614,1710827518763,-828.5076,0.000559,30]
[319531615,1710827518773,-471.5943,0.000559,30]
[319531616,1710827518783,-300.0,0.000559,20]
[319531617,1710827518793,-2476.713,0.000559,30]
[319531618,1710827518806,-563.807341,0.00055961,2]
[319531619,1710827518816,-4948.29716,0.00055961,2]
[319531620,1710827518825,-262.08197195,0.00055999,120]
[319531621,1710827518835,-100000.0,0.00056,56]
[319531622,1710827518845,-580.0,0.00056,14]
[319531623,1710827518855,-250.0,0.00056,120]
[319531624,1710827518864,-177.0,0.00056,120]
[319531625,1710827518874,-150.0,0.00056,30]
[319531626,1710827518885,-356.26636628,0.00056,2]
[319531627,1710827518896,-150963.8773093,0.00056016,2]
[319531628,1710827518907,-153.0,0.00056027,120]
[319531629,1710827518919,-408.52,0.00056055,30]
[319531630,1710827518929,-922.7,0.00056055,30]
[319531631,1710827518940,-408.52,0.00056055,30]
[319531632,1710827518950,-922.7,0.00056055,30]
[319531633,1710827518961,-408.52,0.00056055,30]
[319531634,1710827518972,-922.7,0.00056055,30]
[319531635,1710827518983,-408.52,0.00056055,30]
[319531636,1710827518993,-922.7,0.00056055,30]
[319531637,1710827519007,-408.52,0.00056055,30]
[319531638,1710827519017,-922.7,0.00056055,30]
[319531639,1710827519028,-922.7,0.00056055,30]
[319531640,1710827519038,-408.52,0.00056055,30]
[319531641,1710827519049,-922.7,0.00056055,30]
[319531642,1710827519060,-408.52,0.00056055,30]
[319531643,1710827519071,-408.52,0.00056055,30]
[319531644,1710827519082,-922.7,0.00056055,30]
[319531645,1710827519093,-408.52,0.00056055,30]
[319531646,1710827519104,-922.7,0.00056055,30]
[319531647,1710827519116,-408.52,0.00056055,30]
[319531648,1710827519126,-922.7,0.00056055,30]
[319531649,1710827519137,-574.0,0.00056055,30]
[319531650,1710827519147,-922.7,0.00056055,30]
[319531651,1710827519159,-922.7,0.00056055,30]
[319531652,1710827519169,-728.67,0.00056055,30]
[319531653,1710827519180,-6210.1069057,0.00056126,2]
[319531654,1710827519191,-3678.0192778,0.00056126,2]
[319531655,1710827519201,-202.0469617,0.00056126,2]
[319531656,1710827519212,-1127.0853389,0.00056126,2]
[319531657,1710827519223,-7149.0,0.00056163,4]
[319531658,1710827519233,-262.08197195,0.00056163,120]
[319531659,1710827519246,-500.0,0.00056164,30]
[319531660,1710827519261,-500.0,0.00056164,120]
[319531661,1710827519271,-2000.0,0.00056164,120]
[319531662,1710827519282,-515.61,0.00056164,120]
[319531663,1710827519292,-500.0,0.00056164,120]
[319531664,1710827519303,-500.0,0.00056164,120]
[319531665,1710827519314,-200.0,0.00056164,120]
[319531666,1710827519326,-500.0,0.00056164,120]
[319531667,1710827519337,-500.0,0.00056164,120]
[319531668,1710827519347,-500.0,0.00056164,120]
[319531669,1710827519358,-500.0,0.00056164,120]
[319531670,1710827519369,-500.0,0.00056164,120]
[319531671,1710827519380,-500.0,0.00056164,120]
[319531672,1710827519391,-500.0,0.00056164,120]
[319531673,1710827519401,-500.0,0.00056164,120]
[319531674,1710827519411,-863.61,0.00056164,120]
[319531675,1710827519421,-500.0,0.00056164,120]
[319531676,1710827519432,-500.0,0.00056164,120]
[319531677,1710827519443,-506.26,0.00056164,120]
[319531678,1710827519453,-500.0,0.00056164,120]
[319531679,1710827519464,-500.0,0.00056164,120]
[319531680,1710827519475,-293.32081267,0.00056164,120]
[319531681,1710827519485,-500.0,0.00056164,120]
[319531682,1710827519499,-500.0,0.00056164,120]
[319531683,1710827519510,-500.0,0.00056164,120]
[319531684,1710827519520,-781.12,0.00056164,120]
[319531685,1710827519530,-682.86,0.00056164,120]
[319531686,1710827519540,-1079.96,0.00056164,120]
[319531687,1710827519550,-500.0,0.00056164,120]
[319531688,1710827519561,-500.0,0.00056164,120]
[319531689,1710827519572,-500.0,0.00056164,120]
[319531690,1710827519582,-500.0,0.00056164,120]
[319531691,1710827519593,-500.0,0.00056164,120]
[319531692,1710827519603,-500.0,0.00056164,120]
[319531693,1710827519613,-1218.62,0.00056164,120]
[319531694,1710827519623,-500.0,0.00056164,120]
[319531695,1710827519633,-500.0,0.00056164,120]
[319531696,1710827519644,-605.79,0.00056164,120]
[319531697,1710827519654,-500.0,0.00056164,120]
[319531698,1710827519664,-801.78,0.00056164,120]
[319531699,1710827519674,-500.0,0.00056164,120]
[319531700,1710827519684,-500.0,0.00056164,120]
[319531701,1710827519694,-644.78,0.00056164,120]
[319531702,1710827519705,-1045.71,0.00056164,120]
[319531703,1710827519716,-500.0,0.00056164,120]
[319531704,1710827519726,-699.23,0.00056164,120]
[319531705,1710827519737,-500.0,0.00056164,120]
[319531706,1710827519751,-533.66,0.00056164,120]
[319531707,1710827519761,-500.0,0.00056164,120]
[319531708,1710827519771,-500.0,0.00056164,120]
[319531709,1710827519782,-500.0,0.00056164,120]
[319531710,1710827519792,-233.70211556,0.00056164,120]
[319531711,1710827519805,-749.29,0.00056164,120]
[319531712,1710827519814,-500.0,0.00056164,120]
[319531713,1710827519824,-1081.0,0.00056164,120]
[319531714,1710827519834,-796.97,0.00056164,120]
[319531715,1710827519844,-557.5,0.00056164,120]
[319531716,1710827519854,-500.0,0.00056164,120]
[319531717,1710827519863,-500.0,0.00056164,120]
[319531718,1710827519873,-500.0,0.00056164,120]
[319531719,1710827519885,-1141.1,0.00056164,120]
[319531720,1710827519895,-500.0,0.00056164,120]
[319531721,1710827519910,-536.3,0.00056164,120]
[319531722,1710827519926,-500.0,0.00056164,120]
[319531723,1710827519937,-500.0,0.00056164,120]
[319531724,1710827519947,-500.0,0.00056164,120]
[319531725,1710827519958,-500.0,0.00056164,120]
[319531726,1710827519968,-500.0,0.00056164,120]
[319531727,1710827519979,-500.0,0.00056164,120]
[319531728,1710827519990,-864.62,0.00056164,120]
[319531729,1710827520004,-500.0,0.00056164,120]
[319531730,1710827520015,-500.0,0.00056164,120]
[319531731,1710827520026,-614.04,0.00056164,120]
[319531732,1710827520036,-699.92,0.00056164,120]
[319531733,1710827520047,-1727.86,0.00056164,120]
[319531734,1710827520059,-500.0,0.00056164,120]
[319531735,1710827520070,-583.92,0.00056164,120]
[319531736,1710827520081,-698.08,0.00056164,120]
[319531737,1710827520092,-513.11,0.00056164,120]
[319531738,1710827520104,-500.0,0.00056164,120]
[319531739,1710827520114,-543.31,0.00056164,120]
[319531740,1710827520125,-500.0,0.00056164,120]
[319531741,1710827520135,-921.53,0.00056164,120]
[319531742,1710827520147,-500.0,0.00056164,120]
[319531743,1710827520157,-2149.92,0.00056164,120]
[319531744,1710827520168,-500.0,0.00056164,120]
[319531745,1710827520179,-500.0,0.00056164,120]
[319531746,1710827520189,-500.0,0.00056164,120]
[319531747,1710827520200,-676.27,0.00056164,120]
[319531748,1710827520210,-632.4,0.00056164,120]
[319531749,1710827520220,-563.25,0.00056164,120]
[319531750,1710827520231,-500.0,0.00056164,120]
[319531751,1710827520242,-531.84842241,0.00056164,120]
[319531752,1710827520256,-570.85,0.00056164,120]
[319531753,1710827520267,-500.0,0.00056164,120]
[319531754,1710827520278,-821.94,0.00056164,120]
[319531755,1710827520289,-500.0,0.00056164,120]
[319531756,1710827520299,-500.0,0.00056164,120]
[319531757,1710827520309,-527.86964232,0.00056164,120]
[319531758,1710827520320,-519.04,0.00056164,120]
[319531759,1710827520330,-500.0,0.00056164,120]
[319531760,1710827520341,-761.67,0.00056164,120]
[319531761,1710827520351,-500.0,0.00056164,120]
[319531762,1710827520361,-500.0,0.00056164,120]
[319531763,1710827520371,-500.0,0.00056164,120]
[319531764,1710827520381,-430.6634682,0.00056164,120]
[319531765,1710827520392,-759.95,0.00056164,120]
[319531766,1710827520402,-657.17,0.00056164,120]
[319531767,1710827520413,-668.5,0.00056164,120]
[319531768,1710827520424,-730.23,0.00056164,120]
[319531769,1710827520434,-1907.86,0.00056164,120]
[319531770,1710827520445,-500.0,0.00056164,120]
[319531771,1710827520455,-500.0,0.00056164,120]
[319531772,1710827520466,-500.0,0.00056164,120]
[319531773,1710827520476,-500.0,0.00056164,120]
[319531774,1710827520486,-1563.52,0.00056164,120]
[319531775,1710827520499,-557.59,0.00056164,120]
[319531776,1710827520510,-905.54,0.00056164,120]
[319531777,1710827520520,-500.0,0.00056164,120]
[319531778,1710827520529,-857.79,0.00056164,120]
[319531779,1710827520539,-500.0,0.00056164,120]
[319531780,1710827520549,-500.0,0.00056164,120]
[319531781,1710827520560,-500.0,0.00056164,120]
[319531782,1710827520570,-500.0,0.00056164,120]
[319531783,1710827520580,-500.0,0.00056164,120]
[319531784,1710827520590,-500.0,0.00056164,120]
[319531785,1710827520600,-1016.7,0.00056164,120]
[319531786,1710827520610,-500.0,0.00056164,120]
[319531787,1710827520621,-500.0,0.00056164,120]
[319531788,1710827520632,-524.54,0.00056164,120]
[319531789,1710827520642,-500.0,0.00056164,120]
[319531790,1710827520653,-645.51,0.00056164,120]
[319531791,1710827520663,-500.0,0.00056164,120]
[319531792,1710827520673,-532.60365419,0.00056164,120]
[319531793,1710827520684,-1500.0,0.00056164,120]
[319531794,1710827520693,-500.0,0.00056164,120]
[319531795,1710827520703,-500.0,0.00056164,120]
[319531796,1710827520713,-500.0,0.00056164,120]
[319531797,1710827520723,-500.0,0.00056164,120]
[319531798,1710827520733,-247.79354405,0.00056164,120]
[319531799,1710827520743,-500.0,0.00056164,120]
[319531800,1710827520757,-500.0,0.00056164,120]
[319531801,1710827520767,-500.0,0.00056164,120]
[319531802,1710827520778,-500.0,0.00056164,120]
[319531803,1710827520788,-500.0,0.00056164,120]
[319531804,1710827520798,-500.0,0.00056164,120]
[319531805,1710827520810,-500.0,0.00056164,120]
[319531806,1710827520822,-500.0,0.00056164,120]
[319531807,1710827520832,-554.43732907,0.00056164,120]
[319531808,1710827520842,-500.0,0.00056164,120]
[319531809,1710827520851,-1025.32,0.00056164,120]
[319531810,1710827520862,-561.09,0.00056164,120]
[319531811,1710827520872,-571.37,0.00056164,120]
[319531812,1710827520883,-500.0,0.00056164,120]
[319531813,1710827520893,-752.74,0.00056164,120]
[319531814,1710827520903,-500.0,0.00056164,120]
[319531815,1710827520913,-500.0,0.00056164,120]
[319531816,1710827520924,-931.29,0.00056164,120]
[319531817,1710827520934,-500.0,0.00056164,120]
[319531818,1710827520944,-500.0,0.00056164,120]
[319531819,1710827520954,-500.0,0.00056164,120]
[319531820,1710827520965,-563.82,0.00056164,120]
[319531821,1710827520976,-643.92,0.00056164,120]
[319531822,1710827520988,-500.0,0.00056164,120]
[319531823,1710827521004,-500.0,0.00056164,120]
[319531824,1710827521015,-500.0,0.00056164,120]
[319531825,1710827521026,-652.21,0.00056164,120]
[319531826,1710827521036,-500.0,0.00056164,120]
[319531827,1710827521047,-500.0,0.00056164,120]
[319531828,1710827521058,-500.0,0.00056164,120]
[319531829,1710827521070,-500.0,0.00056164,120]
[319531830,1710827521081,-500.0,0.00056164,120]
[319531831,1710827521092,-500.0,0.00056164,120]
[319531832,1710827521103,-500.0,0.00056164,120]
[319531833,1710827521114,-500.0,0.00056164,120]
[319531834,1710827521125,-500.0,0.00056164,2]
[319531835,1710827521137,-500.0,0.00056164,120]
[319531836,1710827521147,-500.0,0.00056164,120]
[319531837,1710827521158,-500.0,0.00056164,120]
[319531838,1710827521168,-500.0,0.00056164,120]
[319531839,1710827521179,-500.0,0.00056164,120]
[319531840,1710827521190,-1427.61,0.00056164,120]
[319531841,1710827521201,-890.66,0.00056164,120]
[319531842,1710827521212,-500.0,0.00056164,120]
[319531843,1710827521224,-500.0,0.00056164,120]
[319531844,1710827521234,-500.0,0.00056164,120]
[319531845,1710827521249,-999.99,0.00056164,120]
[319531846,1710827521260,-500.0,0.00056164,120]
[319531847,1710827521271,-500.0,0.00056164,120]
[319531848,1710827521282,-500.0,0.00056164,120]
[319531849,1710827521293,-500.0,0.00056164,120]
[319531850,1710827521303,-2045.3,0.00056164,120]
[319531851,1710827521314,-759.21,0.00056164,120]
[319531852,1710827521325,-1524.05,0.00056164,120]
[319531853,1710827521528,-500.0,0.00056164,120]
[319531854,1710827521565,-500.0,0.00056164,120]
[319531855,1710827521576,-500.0,0.00056164,120]
[319531856,1710827521587,-500.0,0.00056164,120]
[319531857,1710827521599,-500.0,0.00056164,120]
[319531858,1710827521610,-500.0,0.00056164,120]
[319531859,1710827521621,-809.23,0.00056164,120]
[319531860,1710827521631,-1247.44,0.00056164,120]
[319531861,1710827521642,-500.0,0.00056164,120]
[319531862,1710827521653,-500.0,0.00056164,120]
[319531863,1710827521662,-500.0,0.00056164,120]
[319531864,1710827521672,-576.17,0.00056164,120]
[319531865,1710827521682,-500.0,0.00056164,120]
[319531866,1710827521692,-500.0,0.00056164,120]
[319531867,1710827521701,-961.43,0.00056164,120]
[319531868,1710827521711,-798.97,0.00056164,120]
[319531869,1710827521720,-1739.68,0.00056164,120]
[319531870,1710827521729,-1188.57,0.00056164,120]
[319531871,1710827521739,-515.11,0.00056164,120]
[319531872,1710827521753,-500.0,0.00056164,120]
[319531873,1710827521763,-500.0,0.00056164,120]
[319531874,1710827521773,-558.28,0.00056164,120]
[319531875,1710827521785,-500.0,0.00056164,120]
[319531876,1710827521795,-550.94,0.00056164,120]
[319531877,1710827521805,-500.0,0.00056164,120]
[319531878,1710827521816,-1235.92,0.00056164,120]
[319531879,1710827521825,-500.0,0.00056164,120]
[319531881,1710827521835,-1104.51,0.00056164,120]
[319531882,1710827521847,-500.0,0.00056164,120]
[319531884,1710827521858,-901.96,0.00056164,120]
[319531885,1710827521867,-444.16893628,0.00056164,120]
[319531886,1710827521877,-518.81,0.00056164,120]
[319531888,1710827521890,-3642.47,0.00056164,120]
[319531889,1710827521902,-500.0,0.00056164,120]
[319531890,1710827521913,-500.0,0.00056164,120]
[319531891,1710827521923,-554.97,0.00056164,120]
[319531893,1710827521933,-1020.96,0.00056164,120]
[319531894,1710827521943,-500.0,0.00056164,120]
[319531895,1710827521954,-500.0,0.00056164,120]
[319531897,1710827521964,-500.0,0.00056164,120]
[319531898,1710827521975,-934.66,0.00056164,120]
[319531899,1710827521985,-562.86,0.00056164,120]
[319531901,1710827521998,-1112.34,0.00056164,120]
[319531902,1710827522009,-823.49,0.00056164,120]
[319531903,1710827522020,-945.08,0.00056164,120]
[319531905,1710827522030,-1068.94,0.00056164,120]
[319531906,1710827522039,-543.38,0.00056164,120]
[319531907,1710827522055,-907.18,0.00056164,120]
[319531909,1710827522065,-1318.29,0.00056164,120]
[319531910,1710827522075,-500.0,0.00056164,120]
[319531911,1710827522086,-938.51,0.00056164,120]
[319531912,1710827522096,-708.65,0.00056164,120]
[319531913,1710827522107,-500.0,0.00056164,120]
[319531914,1710827522117,-675.56,0.00056164,120]
[319531915,1710827522128,-500.0,0.00056164,120]
[319531916,1710827522138,-1108.77,0.00056164,120]
[319531917,1710827522148,-500.0,0.00056164,120]
[319531918,1710827522158,-657.29,0.00056164,120]
[319531919,1710827522171,-500.0,0.00056164,120]
[319531920,1710827522182,-500.0,0.00056164,120]
[319531921,1710827522192,-500.0,0.00056164,120]
[319531922,1710827522203,-991.97,0.00056164,120]
[319531923,1710827522214,-500.0,0.00056164,120]
[319531924,1710827522225,-956.61,0.00056164,120]
[319531925,1710827522235,-578.44,0.00056164,120]
[319531926,1710827522248,-500.0,0.00056164,120]
[319531927,1710827522258,-500.0,0.00056164,120]
[319531928,1710827522267,-823.71,0.00056164,120]
[319531929,1710827522277,-500.0,0.00056164,120]
[319531930,1710827522286,-1621.14,0.00056164,120]
[319531931,1710827522296,-161.79146833,0.00056164,120]
[319531932,1710827522306,-500.0,0.00056164,120]
[319531933,1710827522316,-500.0,0.00056164,120]
[319531934,1710827522325,-500.0,0.00056164,120]
[319531935,1710827522335,-500.0,0.00056164,120]
[319531936,1710827522346,-1395.4,0.00056164,120]
[319531937,1710827522356,-872.35,0.00056164,120]